bitfinex/quotes_BTCUSD_20250313
["timestamp","ask_amount","ask_price","bid_price","bid_amount"]
[1741896121407,0.01982066,80585.0,80584.0,0.015409]
[1741896122017,0.01982066,80585.0,80584.0,0.263597]
[1741896122623,0.01982066,80585.0,80584.0,0.003]
[1741896122821,0.26800566,80585.0,80584.0,0.003]
[1741896123025,0.01982066,80585.0,80584.0,0.015409]
[1741896123234,0.01982066,80585.0,80584.0,0.263597]
[1741896124414,0.00037304,80585.0,80584.0,0.263597]
[1741896124762,0.00037304,80585.0,80584.0,0.413757]
[1741896125519,0.00037304,80585.0,80584.0,0.411757]
[1741896125756,0.00037304,80585.0,80584.0,0.417757]
[1741896126426,0.00037304,80585.0,80584.0,0.411757]
[1741896126631,0.00037304,80585.0,80584.0,0.410757]
[1741896126835,0.00037304,80585.0,80584.0,0.258188]
[1741896127090,0.00037304,80585.0,80584.0,0.270597]
[1741896127237,0.00037304,80585.0,80584.0,0.004]
[1741896127441,0.00037304,80585.0,80584.0,0.016409]
[1741896127645,0.00037304,80585.0,80584.0,0.019409]
[1741896128071,0.00037304,80585.0,80584.0,0.012409]
[1741896128475,0.01981865,80585.0,80584.0,0.018409]
[1741896128970,0.01981865,80585.0,80584.0,0.015409]
[1741896129225,0.01981865,80585.0,80584.0,0.018409]
[1741896129602,0.01981865,80585.0,80584.0,0.015409]
[1741896130041,0.01981865,80585.0,80584.0,0.014409]
[1741896130471,0.01981865,80585.0,80584.0,0.012409]
[1741896130899,0.01981865,80585.0,80584.0,0.018409]
[1741896131476,0.01981865,80585.0,80584.0,0.024409]
[1741896131884,0.01981865,80585.0,80584.0,0.22135073]
[1741896131885,6.5e-07,80585.0,80584.0,0.22135073]
[1741896132179,0.000338,80588.0,80587.0,0.012408]
[1741896132381,1e-06,80588.0,80587.0,0.38152757]
[1741896132580,1e-06,80588.0,80587.0,0.68028699]
[1741896132901,9e-07,80595.0,80594.0,0.560564]
[1741896133163,9e-07,80595.0,80594.0,0.83038499]
[1741896135047,9e-07,80595.0,80594.0,0.84492584]
[1741896135306,9e-07,80595.0,80594.0,0.85692584]
[1741896135527,9e-07,80595.0,80594.0,0.85092584]
[1741896135994,9e-07,80595.0,80594.0,0.85692584]
[1741896136234,9e-07,80595.0,80594.0,0.85092584]
[1741896136714,9e-07,80595.0,80594.0,0.68626499]
[1741896136951,9e-07,80595.0,80594.0,0.84238499]
[1741896137387,9e-07,80595.0,80594.0,0.83638499]
[1741896137644,9e-07,80595.0,80594.0,0.84238499]
[1741896137832,9e-07,80595.0,80594.0,0.83638499]
[1741896138075,9e-07,80595.0,80594.0,0.83038499]
[1741896138338,9e-07,80595.0,80594.0,0.83638499]
[1741896138818,9e-07,80595.0,80594.0,0.84238499]
[1741896140234,6.8e-07,80597.0,80596.0,0.560558]
[1741896140462,0.0001688,80609.0,80603.0,0.260535]
[1741896141618,0.0001688,80609.0,80603.0,0.27848618]
[1741896141833,0.0001688,80609.0,80603.0,0.28448618]
[1741896142062,0.0001688,80609.0,80603.0,0.39818717]
[1741896142601,0.0001688,80609.0,80603.0,0.40418717]
[1741896143641,0.0001688,80609.0,80603.0,0.41018717]
[1741896144025,0.0001688,80609.0,80603.0,0.39818717]
[1741896144251,0.0001688,80609.0,80603.0,0.41018717]
[1741896144443,0.01610216,80623.0,80622.0,0.260474]
[1741896144660,0.248059,80626.0,80619.0,0.012404]
[1741896144823,0.012403,80625.0,80612.0,0.260504]
[1741896145033,0.248068,80623.0,80618.0,0.260485]
[1741896145264,0.248108,80610.0,80603.0,0.024406]
[1741896145579,0.012405,80610.0,80603.0,0.272535]
[1741896145790,0.012405,80610.0,80603.0,0.26693042]
[1741896146114,0.248107,80611.0,80605.0,0.248123]
[1741896146444,0.24811,80610.0,80605.0,0.248123]
[1741896146652,0.24811,80610.0,80604.0,0.012406]
[1741896146858,0.248119,80607.0,80603.0,0.00039542]
[1741896147189,0.012406,80604.0,80603.0,0.00039542]
[1741896147604,0.248126,80605.0,80603.0,0.00239542]
[1741896148070,0.260532,80605.0,80603.0,0.00039542]
[1741896148417,0.2482779,80611.0,80606.0,0.248117]
[1741896148418,0.0001689,80611.0,80606.0,0.248117]
[1741896148866,0.012406,80604.0,80603.0,0.00039542]
[1741896149031,0.090306,80604.0,80603.0,0.00139542]
[1741896149236,0.0779,80604.0,80603.0,0.00139542]
[1741896149553,0.0779,80604.0,80603.0,0.01380142]
[1741896149794,0.0779,80604.0,80603.0,0.26193042]
[1741896150196,0.3385809,80611.0,80605.0,0.248123]
[1741896150341,0.3261759,80611.0,80607.0,0.248116]
[1741896150542,0.0780689,80611.0,80607.0,0.248116]
[1741896150751,0.0780689,80611.0,80609.0,0.260513]
[1741896151082,0.02535002,80610.0,80609.0,0.260513]
[1741896152061,0.0001689,80611.0,80610.0,0.012405]
[1741896153226,0.0011689,80611.0,80610.0,0.012405]
[1741896154183,0.0001689,80611.0,80610.0,0.012405]
[1741896154583,0.0001689,80611.0,80610.0,0.013405]
[1741896155343,0.0001689,80611.0,80610.0,0.36442636]
[1741896155517,0.0001689,80611.0,80610.0,0.36318599]
[1741896155715,6.688e-05,80611.0,80610.0,0.36318599]
[1741896156105,6.688e-05,80611.0,80610.0,0.36518599]
[1741896156305,6.688e-05,80611.0,80610.0,0.36218599]
[1741896156501,8.8e-07,80611.0,80610.0,0.67954383]
[1741896156703,8.8e-07,80611.0,80610.0,0.69154383]
[1741896157026,6.1e-07,80614.0,80613.0,0.260502]
[1741896157224,0.17897776,80649.0,80628.0,0.260454]
[1741896157463,0.01725228,80643.0,80628.0,0.260454]
[1741896157668,0.10970413,80649.0,80628.0,0.38015499]
[1741896157870,8e-07,80629.0,80628.0,0.45745499]
[1741896158031,8e-07,80629.0,80628.0,0.50265499]
[1741896158447,8e-07,80629.0,80628.0,0.42575041]
[1741896159931,8e-07,80629.0,80628.0,0.72575041]
[1741896160305,8e-07,80629.0,80628.0,0.83659041]
[1741896160505,0.01943407,80629.0,80628.0,0.41688942]
[1741896160985,0.01943407,80629.0,80628.0,0.42288942]
[1741896161658,0.01943407,80629.0,80628.0,0.41688942]
[1741896162044,0.01943407,80629.0,80628.0,0.42188942]
[1741896162251,0.01943407,80629.0,80628.0,0.41588942]
[1741896162480,0.01943407,80629.0,80628.0,0.54059041]
[1741896162696,0.01943407,80629.0,80628.0,0.53559041]
[1741896162849,7e-08,80629.0,80628.0,0.53559041]
[1741896163050,7e-08,80629.0,80628.0,0.54159041]
[1741896163264,0.0001688,80645.0,80644.0,0.260403]
[1741896163859,0.0001688,80645.0,80644.0,0.38010399]
[1741896165073,0.0001688,80645.0,80644.0,0.38610399]
[1741896165275,8e-07,80645.0,80644.0,0.47967486]
[1741896165873,8e-07,80645.0,80644.0,0.46780399]
[1741896166643,8e-07,80645.0,80644.0,0.48561155]
[1741896167847,8.9e-07,80648.0,80647.0,0.560393]
[1741896168050,0.0001688,80666.0,80665.0,0.260335]
[1741896168248,0.0001688,80666.0,80665.0,0.38003599]
[1741896169348,0.0001688,80666.0,80665.0,0.39737405]
[1741896169564,0.0001688,80666.0,80665.0,0.40337405]
[1741896170251,0.0001688,80666.0,80665.0,0.26673042]
[1741896170839,0.0001688,80666.0,80665.0,0.5527747]
[1741896171041,0.0001688,80666.0,80665.0,0.5587747]
[1741896171484,0.01959437,80666.0,80665.0,0.5527747]
[1741896171919,0.01959437,80666.0,80665.0,0.5587747]
[1741896172383,0.01959437,80666.0,80665.0,0.5527747]
[1741896172627,0.01959437,80666.0,80665.0,0.5587747]
[1741896173031,0.01959437,80666.0,80665.0,0.01239542]
[1741896173653,0.35712537,80666.0,80665.0,0.01239542]
[1741896173868,0.35712537,80666.0,80665.0,0.00639542]
[1741896174360,0.35712537,80666.0,80665.0,0.01139542]
[1741896174783,0.35712537,80666.0,80665.0,0.00039542]
[1741896175028,0.35712537,80666.0,80665.0,0.00739542]
[1741896175233,0.65712537,80666.0,80665.0,0.00739542]
[1741896175447,1.10642713,80666.0,80665.0,0.00239542]
[1741896175795,1.10642713,80666.0,80644.0,0.0003376]
[1741896175796,0.3371,80645.0,80644.0,0.0003376]
[1741896176133,0.3371,80645.0,80644.0,0.00073008]
[1741896176587,0.3865,80645.0,80644.0,0.00073008]
[1741896176968,0.40104085,80645.0,80644.0,0.00073008]
[1741896177165,0.81054085,80645.0,80644.0,0.00073008]
[1741896178021,0.55857381,80645.0,80644.0,0.00073008]
[1741896178226,0.43247381,80645.0,80644.0,0.00073008]
[1741896178425,0.43347381,80645.0,80644.0,0.00073008]
[1741896178632,0.43247381,80645.0,80644.0,0.00073008]
[1741896178868,0.44487381,80645.0,80644.0,0.00073008]
[1741896179072,0.44587381,80645.0,80644.0,0.00073008]
[1741896179336,0.42993468,80645.0,80644.0,0.01313008]
[1741896179666,0.43193468,80645.0,80644.0,0.01313008]
[1741896179928,0.43193468,80645.0,80644.0,0.00073008]
[1741896180122,0.42993468,80645.0,80644.0,0.00073008]
[1741896180372,0.45542616,80645.0,80644.0,0.01313008]
[1741896180600,0.70542616,80645.0,80644.0,0.00073008]
[1741896180798,0.71682616,80645.0,80644.0,0.00073008]
[1741896181006,0.71482616,80645.0,80644.0,0.00073008]
[1741896181224,0.71582616,80645.0,80644.0,0.00173008]
[1741896181856,0.71582616,80645.0,80644.0,0.01413008]
[1741896181857,0.42993468,80645.0,80644.0,0.01413008]
[1741896182030,0.42993468,80645.0,80644.0,0.00173008]
[1741896182241,0.42993468,80645.0,80644.0,0.01413008]
[1741896182640,0.42993468,80645.0,80644.0,0.00173008]
[1741896183772,0.69033468,80645.0,80644.0,0.00173008]
[1741896184132,0.42993468,80645.0,80644.0,0.01413008]
[1741896184333,0.4105,80645.0,80644.0,0.01413008]
[1741896185863,0.001,80645.0,80644.0,0.01413008]
[1741896186433,0.03458196,80660.0,80657.0,0.012398]
[1741896186636,0.02504116,80662.0,80657.0,0.012398]
[1741896186838,0.02504116,80662.0,80657.0,0.259359]
[1741896187435,0.0001688,80665.0,80664.0,0.247942]
[1741896187684,0.0001688,80665.0,80661.0,0.257345]
[1741896187889,0.01959916,80665.0,80661.0,0.257345]
[1741896188097,0.3,80664.0,80660.0,0.247951]
[1741896188497,0.002,80662.0,80654.0,0.260365]
[1741896188690,0.247965,80657.0,80652.0,0.247975]
[1741896188891,0.012398,80655.0,80646.0,0.012399]
[1741896189089,0.247983,80651.0,80646.0,0.012399]
[1741896189317,0.012398,80652.0,80647.0,0.247994]
[1741896189318,0.247978,80652.0,80647.0,0.247994]
[1741896189748,0.247978,80652.0,80646.0,0.012399]
[1741896190055,0.247978,80652.0,80644.0,0.00073008]
[1741896190056,0.3124,80645.0,80644.0,0.00073008]
[1741896190224,0.3124,80645.0,80606.0,0.01631796]
[1741896190225,0.012403,80622.0,80609.0,0.24811]
[1741896190428,0.78768,80635.0,80627.0,0.012402]
[1741896190634,0.4095,80645.0,80615.0,0.0797]
[1741896190815,0.248012,80642.0,80633.0,0.260435]
[1741896191148,0.0194368,80634.0,80631.0,0.260445]
[1741896191390,0.0194368,80634.0,80622.0,0.260473]
[1741896191574,0.0194368,80634.0,80625.0,0.248061]
[1741896191575,0.248049,80629.0,80625.0,0.248061]
[1741896191774,0.248039,80633.0,80627.0,0.248055]
[1741896191921,0.0194368,80634.0,80630.0,0.012402]
[1741896192117,0.0194368,80634.0,80628.0,0.260452]
[1741896192331,0.0194368,80634.0,80631.0,0.003]
[1741896192540,0.0194368,80634.0,80628.0,0.260452]
[1741896192754,0.2674738,80634.0,80628.0,0.260452]
[1741896193161,0.0194368,80634.0,80629.0,0.012402]
[1741896193475,0.2674728,80634.0,80628.0,0.260452]
[1741896193654,0.2674728,80634.0,80628.0,0.261452]
[1741896194055,0.0194368,80634.0,80628.0,0.261452]
[1741896194252,0.248037,80633.0,80628.0,0.012402]
[1741896194481,0.248037,80633.0,80631.0,0.001]
[1741896194682,0.248046,80630.0,80629.0,0.001]
[1741896195312,0.260448,80630.0,80629.0,0.001]
[1741896195850,0.26046,80626.0,80625.0,0.00039302]
[1741896196030,0.248058,80626.0,80625.0,0.00039302]
[1741896196631,0.248052,80628.0,80625.0,0.00039302]
[1741896197037,0.260454,80628.0,80625.0,0.00039302]
[1741896197422,0.277228,80628.0,80625.0,0.00039302]
[1741896197591,0.248058,80626.0,80625.0,0.00039302]
[1741896197793,0.248058,80626.0,80625.0,0.00239302]
[1741896198038,0.016774,80628.0,80625.0,0.00239302]
[1741896198238,0.397966,80630.0,80629.0,0.260451]
[1741896198239,0.14992,80630.0,80629.0,0.260451]
[1741896198414,0.78772,80635.0,80633.0,0.260438]
[1741896198643,0.78772,80635.0,80634.0,0.012401]
[1741896200342,0.01673923,80641.0,80636.0,0.012401]
[1741896200541,0.248008,80643.0,80636.0,0.260426]
[1741896200747,0.02506082,80641.0,80636.0,0.260426]
[1741896200944,0.01943736,80648.0,80644.0,0.248003]
[1741896201299,0.4095,80648.0,80647.0,0.260393]
[1741896201938,0.78784,80656.0,80655.0,0.012398]
[1741896202133,0.78784,80656.0,80655.0,0.260367]
[1741896203219,0.78784,80656.0,80655.0,0.26076002]
[1741896203579,0.78784,80656.0,80655.0,0.00039302]
[1741896203782,0.78784,80656.0,80655.0,0.26276002]
[1741896204023,0.78784,80656.0,80655.0,0.00239302]
[1741896204232,0.800238,80656.0,80655.0,0.00439302]
[1741896204403,1.100238,80656.0,80655.0,0.00439302]
[1741896205033,1.509738,80656.0,80655.0,0.00439302]
[1741896205205,1.52427885,80656.0,80655.0,0.00439302]
[1741896205406,1.52427885,80656.0,80655.0,0.00239302]
[1741896205609,1.60127885,80656.0,80655.0,0.00239302]
[1741896206099,1.60127885,80656.0,80655.0,0.00039302]
[1741896206932,1.72123974,80656.0,80655.0,0.00039302]
[1741896207133,0.012401,80638.0,80630.0,0.248046]
[1741896207333,0.35509417,80650.0,80638.0,0.012401]
[1741896207540,0.3,80653.0,80646.0,0.012399]
[1741896207736,0.3,80653.0,80642.0,0.0124]
[1741896207737,0.247988,80649.0,80643.0,0.248005]
[1741896207936,0.247988,80649.0,80643.0,0.0124]
[1741896208241,0.3,80651.0,80647.0,0.247993]
[1741896208562,0.24799,80649.0,80644.0,0.0124]
[1741896209023,0.32548996,80649.0,80644.0,0.0124]
[1741896209232,0.32548996,80649.0,80645.0,0.2604]
[1741896210040,0.02548996,80649.0,80645.0,0.0124]
[1741896210236,0.02548996,80649.0,80645.0,0.260398]
[1741896210237,0.04492354,80649.0,80645.0,0.260398]
[1741896210437,0.34492354,80649.0,80644.0,0.262401]
[1741896210666,0.247991,80648.0,80644.0,0.002]
[1741896210876,0.34492354,80649.0,80644.0,0.262402]
[1741896211174,0.04492354,80649.0,80648.0,0.26039]
[1741896211375,0.01943358,80649.0,80648.0,0.26039]
[1741896212138,0.01934676,80649.0,80648.0,0.26039]
[1741896212337,0.01951556,80649.0,80648.0,0.26039]
[1741896212537,0.01951556,80649.0,80648.0,0.26239]
[1741896212744,0.01951556,80649.0,80648.0,0.26039]
[1741896213648,0.0001688,80649.0,80648.0,0.26039]
[1741896214249,0.0001688,80649.0,80648.0,0.26239]
[1741896214420,0.0001688,80649.0,80648.0,0.26439]
[1741896214822,0.0001688,80649.0,80648.0,0.26039]
[1741896215221,0.0001688,80649.0,80648.0,0.26439]
[1741896215636,0.0001688,80649.0,80648.0,0.27699595]
[1741896215832,0.0001688,80649.0,80648.0,0.39669694]
[1741896216035,8e-07,80649.0,80648.0,0.47829694]
[1741896216583,8e-07,80649.0,80648.0,0.78029694]
[1741896216915,8e-07,80649.0,80648.0,0.82969694]
[1741896217091,8e-07,80649.0,80648.0,0.83169694]
[1741896217286,8e-07,80649.0,80648.0,0.84623779]
[1741896217489,8e-07,80649.0,80648.0,0.84423779]
[1741896217790,6e-07,80665.0,80664.0,0.260339]
[1741896217975,0.0001688,80676.0,80665.0,0.012396]
[1741896217976,4e-07,80666.0,80665.0,0.012396]
[1741896218133,4e-07,80666.0,80665.0,0.1333364]
[1741896218378,4e-07,80666.0,80665.0,0.5643364]
[1741896218379,5.4e-07,80666.0,80665.0,0.5643364]
[1741896218583,5.4e-07,80666.0,80665.0,0.56309699]
[1741896218761,0.0001688,80676.0,80675.0,0.012395]
[1741896218956,0.0001688,80676.0,80675.0,0.26069715]
[1741896220245,0.0001688,80676.0,80675.0,0.00039415]
[1741896220397,0.0001688,80676.0,80675.0,0.24830215]
[1741896220596,0.0001688,80676.0,80675.0,0.26069715]
[1741896220797,0.02323612,80676.0,80675.0,0.26069715]
[1741896221008,0.02323612,80676.0,80675.0,0.26269715]
[1741896221434,0.02323612,80676.0,80675.0,0.26069715]
[1741896221632,0.02323612,80676.0,80675.0,0.26169715]
[1741896221877,0.02323612,80676.0,80675.0,0.26469715]
[1741896222093,0.0001688,80676.0,80675.0,0.26169715]
[1741896222310,0.01959401,80676.0,80675.0,0.26169715]
[1741896222533,0.01959401,80676.0,80675.0,0.26369715]
[1741896222751,0.01959401,80676.0,80675.0,0.26169715]
[1741896223135,0.01959401,80676.0,80675.0,0.26369715]
[1741896223720,0.01959401,80676.0,80675.0,0.01478915]
[1741896223929,0.01959401,80676.0,80675.0,0.00239415]
[1741896224132,0.01959401,80676.0,80675.0,0.00439415]
[1741896224370,0.01959401,80676.0,80675.0,0.01678915]
[1741896224523,0.01959401,80676.0,80675.0,0.26469715]
[1741896225319,0.01959401,80676.0,80675.0,0.00439415]
[1741896225584,0.0117002,80676.0,80675.0,0.00439415]
[1741896225776,0.0117002,80676.0,80675.0,0.01678915]
[1741896225976,0.28266599,80676.0,80675.0,0.00439415]
[1741896226182,0.29506099,80676.0,80675.0,0.00439415]
[1741896227117,0.29506099,80676.0,80675.0,0.00239415]
[1741896227487,0.247915,80673.0,80668.0,0.247929]
[1741896227667,0.012395,80674.0,80668.0,0.2483225]
[1741896228223,0.012395,80674.0,80670.0,0.247922]
[1741896228653,0.02306079,80673.0,80670.0,0.247922]
[1741896228862,0.02306079,80673.0,80672.0,0.260312]
[1741896229912,0.33463037,80691.0,80688.0,0.247868]
[1741896230296,0.33463037,80691.0,80690.0,0.247862]
[1741896230500,0.33463037,80691.0,80687.0,0.012393]
[1741896230684,0.35982705,80691.0,80687.0,0.260262]
[1741896230812,0.05982705,80691.0,80690.0,0.012393]
[1741896231017,0.02519668,80691.0,80690.0,0.012393]
[1741896231433,0.02919668,80691.0,80690.0,0.012393]
[1741896231814,0.02919668,80691.0,80687.0,0.012393]
[1741896232240,0.02519668,80691.0,80687.0,0.012393]
[1741896232444,0.02719668,80691.0,80690.0,0.012393]
[1741896232646,0.002,80691.0,80690.0,0.012393]
[1741896233131,0.002,80691.0,80686.0,0.247873]
[1741896233332,0.002,80691.0,80685.0,0.012393]
[1741896233333,0.002,80691.0,80689.0,0.012393]
[1741896233533,0.002,80691.0,80690.0,0.012393]
[1741896233977,0.24089004,80692.0,80691.0,0.260251]
[1741896234320,0.24089004,80692.0,80691.0,0.258251]
[1741896234973,0.24089004,80692.0,80691.0,0.257251]
[1741896236717,0.26031293,80692.0,80691.0,0.257251]
[1741896241041,0.26031293,80692.0,80690.0,0.247861]
[1741896241199,0.26031293,80692.0,80691.0,0.012392]
[1741896242946,0.25721991,80692.0,80691.0,0.012392]
[1741896243356,0.23779702,80692.0,80691.0,0.012392]
[1741896246783,0.25722001,80692.0,80691.0,0.012392]
[1741896248008,0.247825,80702.0,80697.0,0.247837]
[1741896248152,0.247825,80702.0,80696.0,0.012392]
[1741896248751,0.31454085,80704.0,80701.0,0.247828]
[1741896248951,0.31454085,80704.0,80699.0,0.247834]
[1741896248952,0.32693085,80704.0,80699.0,0.247834]
[1741896249155,0.260215,80703.0,80697.0,0.012392]
[1741896249331,0.247827,80702.0,80699.0,0.0003935]
[1741896249540,0.260218,80702.0,80699.0,0.0003935]
[1741896249736,0.260221,80701.0,80699.0,0.0003935]
[1741896249939,0.012391,80700.0,80699.0,0.0003935]
[1741896251326,0.013391,80700.0,80699.0,0.0003935]
[1741896251535,0.34735521,80700.0,80699.0,0.0003935]
[1741896252148,0.37253067,80700.0,80699.0,0.0003935]
[1741896253372,0.35310731,80700.0,80699.0,0.0003935]
[1741896253567,0.76260731,80700.0,80699.0,0.0003935]
[1741896254862,0.91232731,80700.0,80699.0,0.0003935]
[1741896256091,1.69960731,80700.0,80699.0,0.0003935]
[1741896257610,1.9000682,80700.0,80699.0,0.0003935]
[1741896258039,1.7503482,80700.0,80699.0,0.0003935]
[1741896258244,1.9000682,80700.0,80699.0,0.0003935]
[1741896258922,1.84958506,80700.0,80699.0,0.0003935]
[1741896259248,1.84858506,80700.0,80699.0,0.0003935]
[1741896259455,1.84358506,80700.0,80699.0,0.0003935]
[1741896259775,0.012392,80694.0,80687.0,0.247869]
[1741896260087,0.012392,80694.0,80691.0,0.00073138]
[1741896260321,0.012392,80693.0,80691.0,0.00073138]
[1741896260530,0.3,80693.0,80691.0,0.00073138]
[1741896260765,0.547855,80693.0,80691.0,0.00073138]
[1741896261831,0.561247,80693.0,80691.0,0.00073138]
[1741896262206,0.563247,80693.0,80691.0,0.00073138]
[1741896263287,0.303,80693.0,80692.0,0.247856]
[1741896263574,0.303,80693.0,80691.0,0.00073138]
[1741896263575,0.003,80693.0,80691.0,0.00073138]
[1741896264152,0.301,80693.0,80691.0,0.00073138]
[1741896264880,0.001,80693.0,80692.0,0.012392]
[1741896265851,0.03474674,80699.0,80698.0,0.335828]
[1741896266062,0.5,80746.0,80745.0,0.012384]
[1741896266305,0.5,80746.0,80735.0,0.012386]
[1741896266306,0.012385,80741.0,80732.0,0.012386]
[1741896266532,0.247712,80739.0,80728.0,0.0463]
[1741896266745,0.012385,80740.0,80727.0,0.247746]
[1741896266951,0.247709,80740.0,80730.0,0.012386]
[1741896267184,0.247719,80737.0,80729.0,0.247742]
[1741896267383,0.260094,80740.0,80731.0,0.012386]
[1741896267384,0.247709,80740.0,80731.0,0.012386]
[1741896267661,0.012385,80738.0,80727.0,0.00039398]
[1741896267863,0.24773,80733.0,80727.0,0.00039398]
[1741896268012,0.247724,80735.0,80727.0,0.00039398]
[1741896268220,0.260117,80733.0,80727.0,0.00039398]
[1741896268465,0.012387,80728.0,80727.0,0.00039398]
[1741896268645,0.312387,80728.0,80727.0,0.00039398]
[1741896270415,0.32692785,80728.0,80727.0,0.00039398]
[1741896270932,0.73742785,80728.0,80727.0,0.00039398]
[1741896271437,0.73642785,80728.0,80727.0,0.00039398]
[1741896271673,0.76164593,80728.0,80727.0,0.00039398]
[1741896271849,0.76264593,80728.0,80727.0,0.00039398]
[1741896272270,0.78206108,80728.0,80727.0,0.00039398]
[1741896273217,0.93170108,80728.0,80727.0,0.00039398]
[1741896273823,0.93270108,80728.0,80727.0,0.00039398]
[1741896274047,0.78306108,80728.0,80727.0,0.00039398]
[1741896276835,0.78322968,80728.0,80727.0,0.00039398]
[1741896277060,0.76868883,80728.0,80727.0,0.00039398]
[1741896277262,0.75630183,80728.0,80727.0,0.00039398]
[1741896277464,0.76868883,80728.0,80727.0,0.00039398]
[1741896278266,0.45630183,80728.0,80727.0,0.24814198]
[1741896278458,0.4116686,80728.0,80727.0,0.26052898]
[1741896279535,0.4106686,80728.0,80727.0,0.26052898]
[1741896280434,0.4106686,80728.0,80727.0,0.26252898]
[1741896280799,0.4096686,80728.0,80727.0,0.26252898]
[1741896280986,0.4096686,80728.0,80727.0,0.26052898]
[1741896281187,0.4096686,80728.0,80727.0,0.26652898]
[1741896281461,0.6574136,80728.0,80727.0,0.00639398]
[1741896281578,0.6698006,80728.0,80727.0,0.00639398]
[1741896281779,0.9698006,80728.0,80727.0,0.00639398]
[1741896282414,0.9698006,80728.0,80727.0,0.00339398]
[1741896282856,0.9698006,80728.0,80727.0,0.00439398]
[1741896283232,0.9698006,80728.0,80727.0,0.00139398]
[1741896283435,0.9698006,80728.0,80727.0,0.00239398]
[1741896283844,0.98434145,80728.0,80727.0,0.00239398]
[1741896284035,0.98434145,80728.0,80727.0,0.00139398]
[1741896284235,0.98534145,80728.0,80727.0,0.00039398]
[1741896285461,0.98634145,80728.0,80727.0,0.00039398]
[1741896285767,0.98534145,80728.0,80727.0,0.00039398]
[1741896285999,0.98734145,80728.0,80727.0,0.00039398]
[1741896286616,0.560161,80719.0,80696.0,0.012392]
[1741896286786,0.98420185,80719.0,80718.0,0.0007298]
[1741896287330,1.79066019,80719.0,80718.0,0.0007298]
[1741896287728,1.79066019,80719.0,80699.0,0.260225]
[1741896287729,0.260219,80702.0,80692.0,0.012392]
[1741896287931,0.24783,80701.0,80699.0,0.00039309]
[1741896288130,0.247828,80702.0,80699.0,0.00039309]
[1741896288664,0.26724799,80702.0,80699.0,0.00039309]
[1741896289168,0.01941999,80702.0,80700.0,0.012391]
[1741896289307,0.01941999,80702.0,80699.0,0.00039309]
[1741896289769,0.01941999,80702.0,80699.0,0.00139309]
[1741896290000,0.247828,80701.0,80699.0,0.00139309]
[1741896290210,0.560248,80692.0,80672.0,0.012395]
[1741896290414,0.57478885,80692.0,80691.0,0.00073066]
[1741896290945,0.59421216,80692.0,80691.0,0.00073066]
[1741896291597,1.00371216,80692.0,80691.0,0.00073066]
[1741896292210,0.97677931,80692.0,80691.0,0.00073066]
[1741896292464,0.98917131,80692.0,80691.0,0.00073066]
[1741896293171,1.08431216,80692.0,80691.0,0.00073066]
[1741896293379,1.23395216,80692.0,80691.0,0.00073066]
[1741896293585,1.23895216,80692.0,80691.0,0.00073066]
[1741896293820,1.23995216,80692.0,80691.0,0.00073066]
[1741896294232,1.23895216,80692.0,80691.0,0.00073066]
[1741896294439,1.15335216,80692.0,80691.0,0.00073066]
[1741896294611,1.00571216,80692.0,80691.0,0.00073066]
[1741896295020,1.15531216,80692.0,80691.0,0.00073066]
[1741896295580,1.15831216,80692.0,80691.0,0.00073066]
[1741896298520,0.98177931,80692.0,80691.0,0.00073066]
[1741896298758,0.962356,80692.0,80691.0,0.00073066]
[1741896298936,0.974748,80692.0,80691.0,0.00073066]
[1741896299494,0.969748,80692.0,80691.0,0.00073066]
[1741896299997,0.969748,80692.0,80691.0,0.00173066]
[1741896300195,0.969748,80692.0,80691.0,0.00073066]
[1741896300398,1.00371278,80692.0,80691.0,0.00073066]
[1741896300674,1.00471278,80692.0,80691.0,0.00073066]
[1741896301106,1.00471278,80692.0,80691.0,0.00173066]
[1741896301313,1.00471278,80692.0,80691.0,0.00073066]
[1741896301485,1.00571278,80692.0,80691.0,0.00073066]
[1741896301894,1.12741993,80692.0,80691.0,0.00073066]
[1741896302306,1.14181193,80692.0,80691.0,0.00073066]
[1741896302518,1.14081193,80692.0,80691.0,0.00073066]
[1741896303051,0.43192393,80692.0,80691.0,0.01312266]
[1741896303202,0.4125,80692.0,80691.0,0.01312266]
[1741896303836,0.4115,80692.0,80691.0,0.01312266]
[1741896304042,0.4105,80692.0,80691.0,0.01312266]
[1741896304370,0.4115,80692.0,80691.0,0.01312266]
[1741896304506,0.4105,80692.0,80691.0,0.01312266]
[1741896304925,0.4105,80692.0,80691.0,0.01512266]
[1741896305532,0.4095,80692.0,80691.0,0.01512266]
[1741896305770,0.4095,80692.0,80691.0,0.01712266]
[1741896306246,1.19682,80693.0,80692.0,0.247856]
[1741896306443,1.19682,80693.0,80691.0,0.00473066]
[1741896306643,0.312392,80692.0,80691.0,0.00473066]
[1741896307046,0.312392,80692.0,80691.0,0.00273066]
[1741896307318,0.312392,80692.0,80691.0,0.00073066]
[1741896307453,0.73643285,80692.0,80691.0,0.00073066]
[1741896307658,0.5603,80676.0,80655.0,0.0451]
[1741896307862,0.247956,80660.0,80655.0,0.0451]
[1741896308062,0.3,80669.0,80665.0,0.012396]
[1741896308265,0.3,80669.0,80663.0,0.247942]
[1741896308545,0.5673556,80669.0,80663.0,0.260339]
[1741896309010,0.03932961,80669.0,80665.0,0.260332]
[1741896309185,0.00041761,80669.0,80665.0,0.260332]
[1741896309393,0.247939,80665.0,80653.0,0.012398]
[1741896309600,0.247959,80659.0,80654.0,0.087998]
[1741896309813,0.24793,80668.0,80659.0,0.260351]
[1741896310059,0.24793,80668.0,80654.0,0.0756]
[1741896310060,0.012396,80667.0,80656.0,0.012398]
[1741896310471,0.260321,80670.0,80644.0,0.0003376]
[1741896310472,0.012398,80657.0,80644.0,0.0003376]
[1741896310810,0.247972,80655.0,80648.0,0.247989]
[1741896310927,0.247993,80648.0,80644.0,0.0003376]
[1741896311124,0.012398,80655.0,80644.0,0.0003376]
[1741896311417,0.012398,80658.0,80649.0,0.012399]
[1741896311559,0.4095,80660.0,80651.0,0.247981]
[1741896311560,0.247963,80657.0,80651.0,0.247981]
[1741896311965,0.24797,80655.0,80651.0,0.247981]
[1741896312168,0.04448545,80656.0,80654.0,0.012398]
[1741896312511,0.01943064,80656.0,80655.0,0.260367]
[1741896312817,0.4095,80660.0,80659.0,0.260354]
[1741896313551,0.7874,80662.0,80661.0,0.260348]
[1741896313985,0.00041761,80669.0,80668.0,0.260325]
[1741896314741,0.00041761,80669.0,80667.0,0.260325]